Cogmind - Beta 13 @@@ ROGUE MODE // 2024.04.06 @ 16:01:32 Player: emory Result: Destroyed self with Rocket Launcher Performance ------------- Evolutions (1) 500 Regions Visited (3) 600 Robots Destroyed (44) 220 Value Destroyed (1145) 1145 Prototype IDs (0) 0 Alien Tech Used (0) 0 Bonus (7) 7 TOTAL SCORE: 2472 Bonus ------- Follower Combat Kills 7 Cogmind --------- Core Integrity 0/400 Matter 279/300 Energy 265/265 System Corruption 0% Temperature Cool (0) Movement Walking (190) Ox1 Location -9/Materials Parts ------- > --- POWER (1) -------- Improved Ion Engine > --- PROPULSION (4) --- Aluminum Leg Aluminum Leg > --- UTILITY (2) ------ Improved Heat Sink Large Storage Unit > --- WEAPON (2) ------- Rocket Launcher Flail > --- INVENTORY (15) --- Light Ion Engine Flight Unit Flight Unit Flight Unit Visual Processing Unit Sensor Array Signal Interpreter ECM Suite ECM Suite Light Armor Plating Hacking Suite Hacking Suite Hacking Suite Hacking Suite System Shield Peak State ------------ > --- POWER ------------ Light Nuclear Core > --- PROPULSION ------- Aluminum Leg Aluminum Leg > --- UTILITY ---------- Improved Heat Sink Large Storage Unit > --- WEAPON ----------- Beamcaster Heavy Assault Rifle > --- INVENTORY -------- Wheel Wheel Flight Unit Flight Unit Flight Unit Sensor Array [Rating: 16] Favorites ----------- Power Light Ion Engine Engine Light Ion Engine Power Core Light Nuclear Core Propulsion Aluminum Leg Treads Light Treads Leg Aluminum Leg Flight Unit Flight Unit Utility Large Storage Unit Device Improved Heat Sink Storage Large Storage Unit Protection Light Armor Plating Weapon Heavy Assault Rifle Energy Gun EM Pulse Gun Ballistic Gun Heavy Assault Rifle Launcher Rocket Launcher Impact Weapon Flail Build | -11 -10 -10 -9 ------- Run | Yrd Mat Min Mat Slots Evolved 2 | . . . 2 Power . | . . . . Propulsion 2 | . . . 2 Utility . | . . . . Weapon . | . . . . Parts Attached 32 | 5 2 8 17 Power 6 | 1 . 2 3 Engine 5 | 1 . 2 2 Core 1 | . . . 1 Reactor . | . . . . Propulsion 12 | 2 . 2 8 Treads 2 | 2 . . . Leg 7 | . . 2 5 Wheel . | . . . . Hover . | . . . . Flight 3 | . . . 3 Utility 6 | 1 1 2 2 Device 2 | . . 1 1 Storage 2 | 1 1 . . Processor . | . . . . Hackware . | . . . . Protection 2 | . . 1 1 Artifact . | . . . . Weapon 8 | 1 1 2 4 Energy Gun 4 | . 1 2 1 Energy Cannon . | . . . . Ballistic Gun 2 | 1 . . 1 Ballistic Cannon . | . . . . Launcher 1 | . . . 1 Special Weapon . | . . . . Impact Weapon 1 | . . . 1 Slashing Weapon . | . . . . Piercing Weapon . | . . . . Special Melee Weapon . | . . . . Unidentified Prototypes . | . . . . Parts Lost 16 | . . 8 8 Power 4 | . . 2 2 Propulsion 6 | . . 2 4 Utility 2 | . . 1 1 Weapon 4 | . . 3 1 Highest Loss Streak 3 | . . 3 3 To Critical Strikes . | . . . . Average Slot Usage (%) 77 | . 80 81 75 Engine 9 | . 14 13 7 Core 2 | . . . 3 Treads 8 | . 28 21 . Leg 15 | . . 2 22 Flight 1 | . . . 1 Device 7 | . . 1 10 Storage 12 | . 14 14 11 Protection 2 | . . 9 . Energy Gun 9 | . 9 17 6 Ballistic Gun 5 | . 14 . 6 Impact Weapon 2 | . . . 4 Naked Turns . | . . . . Heaviest Build 34 | 9 26 31 34 Greatest Support 40 | 40 40 40 30 Greatest Overweight (x) 10 | 1 . 1 10 Average Overweight (x) . | . . . 1 Largest Inventory Capacity 15 | 8 15 15 15 Average Capacity 14 | 7 11 15 15 Most Carried 15 | 7 8 10 15 Average Carried 9 | 4 7 7 10 Final Capacity 15 | 8 15 15 15 Final Carried 15 | 7 7 6 15 Class Distribution -------------------- 53% | Scavenger-Mutant 46% | Mutant Dominant Class ---------------- Mutant | -10/Materials Mutant | -10/Mines Scavenger-Mutant | -9/Materials Resources | -11 -10 -10 -9 ----------- Run | Yrd Mat Min Mat Matter Collected 732 | 250 38 70 374 Remotely . | . . . . Salvage Created 1475 | . 52 401 1022 Parts 79 | . 3 14 62 Haulers Intercepted . | . . . . Recyclers Shooed 5 | . . . 5 Parts Field Recycled . | . . . . Retrieved Matter . | . . . . Parts Self-Destructed . | . . . . Prevented . | . . . . Kills | -11 -10 -10 -9 ------- Run | Yrd Mat Min Mat Combat Hostiles Destroyed 34 | . 3 10 21 Melee 1 | . . 1 . Guns 31 | . 3 7 21 Classes Destroyed 9 | . 1 2 6 Worker 2 | . . . 2 Builder 1 | . . . 1 Recycler 2 | . . 1 1 Operator 2 | . . . 2 Watcher 3 | . . . 3 Swarmer 10 | . 3 4 3 Grunt 20 | . . 6 14 Brawler 1 | . . . 1 Sentry 3 | . . . 3 Best Kill Streak 6 | . 2 3 6 Combat Bots Only 4 | . 2 3 4 Max Kills in Single Turn 1 | . 1 1 1 Gunslinging . | . . . . Exploded . | . . . . Melee 1 | . . 1 . Uniques/NPCs Destroyed . | . . . . Combat | -11 -10 -10 -9 -------- Run | Yrd Mat Min Mat Hostile Shots Fired 283 | . 44 62 177 Missed 74 | . 11 8 55 Damage Taken 2250 | . 324 568 1358 Core 592 | . 95 94 403 Absorbed by Shields . | . . . . Core Remaining (%) 62 | 100 . 24 . Volleys Fired 192 | . 19 33 140 Largest 2 | . 2 2 2 Hottest 98 | . 60 80 98 Shots Fired 232 | . 21 43 168 Gun 231 | . 21 43 167 Cannon . | . . . . Launcher 1 | . . . 1 Special . | . . . . Kinetic 97 | . 19 . 78 Thermal 100 | . . 11 89 Explosive 1 | . . . 1 Electromagnetic 34 | . 2 32 . Robot Hit Streak 12 | . 4 12 8 Robot Miss Streak 4 | . 2 2 4 Penetration Max . | . . . . Secondary Targets 1 | . . . 1 Max Gunslinging Chain 1 | . . . 1 Shots Hit Robots 140 | . 14 32 94 Core Hits 59 | . 6 14 39 Critical Kills . | . . . . Critical Parts Destroyed 1 | . . . 1 Critical Strikes 10 | . . 2 8 Burn 8 | . . 1 7 Destroy 1 | . . . 1 Corrupt 1 | . . 1 . Melee Attacks 1 | . . . 1 Impact 1 | . . . 1 Slashing . | . . . . Piercing . | . . . . Sneak Attacks 1 | . . . 1 Combat Hostiles . | . . . . Follow-up Attacks . | . . . . Damage Inflicted 2325 | . 123 510 1692 Guns 2224 | . 113 473 1638 Cannons . | . . . . Explosions . | . . . . Melee 53 | . . . 53 Ramming 48 | . 10 37 1 Kinetic 826 | . 103 . 723 Thermal 1060 | . . 145 915 Explosive . | . . . . Electromagnetic 338 | . 10 328 . Impact 53 | . . . 53 Slashing . | . . . . Piercing . | . . . . Highest Corruption . | . . . . Average Corruption . | . . . . Corruption Purged . | . . . . Corruption Blocked . | . . . . Overload Shots . | . . . . Overflow Damage 21 | . . 8 13 Projectiles . | . . . . Explosions . | . . . . Melee 21 | . . 8 13 Knockbacks . | . . . . Impact . | . . . . Kinetic . | . . . . Secondary . | . . . . Self-Inflicted Damage 27 | . . . 27 Shots 1 | . . . 1 Rammed 12 | . 3 9 . Targets Rammed 14 | . 3 10 1 Kicked 1 | . . . 1 Crushed 1 | . . 1 . Highest Temperature 380 | . 35 283 380 Average Temperature 107 | . 16 73 140 Received Heat Transfer 918 | . 102 258 558 Effects 7 | . . 1 6 Shutdowns 1 | . . . 1 Energy Bleed 1 | . . . 1 Interference 3 | . . 1 2 Short Circuit 1 | . . . 1 Damage (minor) 1 | . . . 1 Siege Activations . | . . . . Robots Corrupted 3 | . . 3 . Combat Hostiles 2 | . . 2 . Parts Fried 5 | . . 4 1 Impact Corruptions 2 | . . 1 1 Robots Melted . | . . . . Combat Hostiles . | . . . . Parts Melted . | . . . . Heat Transferred 2664 | . . 333 2331 Parts Sabotaged . | . . . . Parts Stolen . | . . . . Parts Stripped . | . . . . Power Chain Reactions . | . . . . Alert | -11 -10 -10 -9 ------- Run | Yrd Mat Min Mat Peak Influence 252 | . 90 184 252 Initial 34 | . . 34 25 Average 126 | . 55 81 164 Maximum Alert Level 1 | . . . 1 Low Security (%) 75 | 100 100 100 60 Level 1 24 | . . . 39 Level 2 . | . . . . Level 3 . | . . . . Level 4 . | . . . . Level 5 . | . . . . High Security . | . . . . Max Security . | . . . . Squads Dispatched 4 | . . . 4 Investigation 2 | . . . 2 Extermination . | . . . . Reinforcement 2 | . . . 2 Assault . | . . . . Garrison . | . . . . Intercept . | . . . . Searches Triggered . | . . . . Construction Impeded . | . . . . Haulers Reinforced . | . . . . Active Scanning Responses . | . . . . Cargo Convoy Interrupts . | . . . . Stealth | -11 -10 -10 -9 --------- Run | Yrd Mat Min Mat Distress Signals . | . . . . Communications Jammed . | . . . . Distress Signals . | . . . . Times Spotted 57 | . 9 12 36 Peak Tracking Total 6 | . 6 3 4 Tactical Retreats 2 | . . . 2 Traps | -11 -10 -10 -9 ------- Run | Yrd Mat Min Mat Traps Triggered 2 | . . . 2 Indirectly . | . . . . Trap Hack Attempts . | . . . . Triggered . | . . . . Disarmed . | . . . . Reprogrammed . | . . . . Reused . | . . . . Traps Extracted . | . . . . Installed . | . . . . Triggered . | . . . . Machines | -11 -10 -10 -9 ---------- Run | Yrd Mat Min Mat Machines Disabled 3 | . . . 3 Max in Single Turn 1 | . . . 1 Machines Repaired . | . . . . Machines Dismantled . | . . . . Machines Sabotaged . | . . . . Overloaded Fab Kills . | . . . . Hacking | -11 -10 -10 -9 --------- Run | Yrd Mat Min Mat Machines Accessed 4 | . 1 . 3 Terminals 4 | . 1 . 3 Fabricators . | . . . . Repair Stations . | . . . . Recycling Units . | . . . . Scanalyzers . | . . . . Garrison Access . | . . . . Total Hacks 8 | . 4 . 4 Successful 3 | . 1 . 2 Failed 5 | . 3 . 2 Catastrophic . | . . . . Database Lockouts . | . . . . Manual . | . . . . Terminals 8 | . 4 . 4 Fabricators . | . . . . Repair Stations . | . . . . Recycling Units . | . . . . Scanalyzers . | . . . . Garrison Access . | . . . . Terminal Hacks 3 | . 1 . 2 Branch Access Points 1 | . . . 1 Hauler Manifests 1 | . . . 1 Zone Layout 1 | . 1 . . Fabricator Hacks . | . . . . Repair Station Hacks . | . . . . Recycling Unit Hacks . | . . . . Scanalyzer . | . . . . Garrison Access Hacks . | . . . . Unauthorized Hacks . | . . . . Terminals . | . . . . Fabricators . | . . . . Repair Stations . | . . . . Recycling Units . | . . . . Scanalyzers . | . . . . Garrison Access . | . . . . Data Cores Recovered . | . . . . Used . | . . . . Hacking Detections 3 | . 1 . 2 Full Trace Events . | . . . . Feedback Events . | . . . . Feedback Blocked . | . . . . Robot Schematics Acquired . | . . . . Robots Built . | . . . . Authchips . | . . . . Time . | . . . . Total Robot Build Rating . | . . . . Part Schematics Acquired . | . . . . Parts Built . | . . . . Authchips . | . . . . Time . | . . . . Total Part Build Rating . | . . . . Parts Repaired . | . . . . Time . | . . . . Parts Recycled . | . . . . Recycled Matter . | . . . . Retrieved Matter . | . . . . Retrieved Components . | . . . . Parts Scanalyzed . | . . . . Part Schematics Acquired . | . . . . Parts Damaged . | . . . . Bothacking | -11 -10 -10 -9 ------------ Run | Yrd Mat Min Mat Used RIF Installer . | . . . . Robots Hacked . | . . . . Non-combat . | . . . . Combat . | . . . . Robot Hacks Applied . | . . . . Relay Couplers Released . | . . . . Fabnet Peak Effective % . | . . . . Robots Rewired . | . . . . Allies Hacked . | . . . . Hacks Repelled . | . . . . Allies | -11 -10 -10 -9 -------- Run | Yrd Mat Min Mat Total Allies 2 | . . 2 . Largest Group 2 | . . 2 . Highest-Rated Group 49 | . . 49 . Highest-Rated Ally 31 | . . 31 . Total Orders . | . . . . Ally Attacks 7 | . . 7 . Total Damage 64 | . . 64 . Kills 1 | . . 1 . Allies Corrupted . | . . . . Allies Melted . | . . . . Intel | -11 -10 -10 -9 ------- Run | Yrd Mat Min Mat Robot Analysis Total . | . . . . Derelict Logs Recovered . | . . . . Drone Launches . | . . . . Drone Recoveries . | . . . . Exploration | -11 -10 -10 -9 ------------- Run | Yrd Mat Min Mat Turns Passed 2409 | 110 222 597 1480 Spaces Moved 1045 | 60 111 276 598 Core 16 | 13 . . 3 Treads 405 | 47 111 247 . Legs 599 | . . 29 570 Wheels . | . . . . Hover . | . . . . Flight 25 | . . . 25 Fastest Speed 50 | 50 160 160 120 Average Speed 178 | 140 160 175 186 Slowest Speed 550 | 160 160 240 550 Overloaded Moves . | . . . . Propulsion Burnouts . | . . . . Robots Hopped . | . . . . Cave-ins Triggered . | . . . . Exploration Rate (%) 29 | 4 32 37 43 Regions Visited 3 Branch Regions 1 Pre-discovered Areas . | . . . . Known Exits Taken . | . . . . Unknown Exits Taken 3 | 1 1 1 . Scrap Searched 1 | . . 1 . Spaces Dug 12 | . . . 12 Terrain Destroyed 12 | . . . 12 Melee . | . . . . Projectile . | . . . . AOE 12 | . . . 12 Terrain Rammed . | . . . . Walls Destroyed . | . . . . Machines Disabled . | . . . . Actions | -11 -10 -10 -9 --------- Run | Yrd Mat Min Mat Total 1362 | 86 137 338 801 Wait 19 | 10 . 5 4 Move 1042 | 59 110 275 598 Hop . | . . . . Pick Up 49 | 12 2 7 28 Fast Attach . | . . . . Attach 28 | 5 1 8 14 Detach 2 | . . . 2 Swap 4 | . 1 . 3 Drop 11 | . 1 . 10 Fire 192 | . 19 33 140 Melee 1 | . . . 1 Ram . | . . . . Kick 1 | . . . 1 Crush 13 | . 3 10 . Escape Stasis . | . . . . Rewire . | . . . . Trap . | . . . . Miscellaneous . | . . . . Route ------- -11/Scrapyard -10/Materials -10/Mines -9/Materials (discovered 1 exit: Min) History --------- Turn | Location | Event 7 | -11/Scrapyard | Discovered new exit (range 16) 111 | -11/Scrapyard | Entered Materials 307 | -10/Materials | Build established: Mutant 322 | -10/Materials | Discovered new exit (range 8) 333 | -10/Materials | Entered Mines 581 | -10/Mines | Core integrity fell below 50% 765 | -10/Mines | Lost 3 parts (1p1n1w) 898 | -10/Mines | Lost 3 parts (1p1n1u) 918 | -10/Mines | Discovered new exit (range 8) 930 | -10/Mines | Entered Materials 930 | -9/Materials | Evolved 2 slots: Propulsion x2 1158 | -9/Materials | Lost 3 parts (2n1u) 1159 | -9/Materials | Core integrity fell below 50% 1438 | -9/Materials | Build established: Scavenger-Mutant 1739 | -9/Materials | Core integrity fell below 20% 1772 | -9/Materials | Identified exit to Mines 2410 | -9/Materials | Destroyed self with Rocket Launcher Last Messages --------------- T-07 Excavator is excavating. U-05 Engineer lays Concrete. T-07 Excavator is excavating. Acquired 25 matter. Material Processor disabled. G-34 Mercenary destroyed. K-01 Serf collects debris. Sneak attack on K-01 Serf. Destroyed Lgt. Ion Engine. K-01 Serf system corrupted by crushing effect. K-01 Serf system terminally corrupted. Sml. Matter Pod fried. Dropped Imp. Hover Unit. Dropped Terrain Scanner. Dropped Hvy. Assault Rifle. Dropped Beam Rifle. Acquired System Shield. Acquired Hacking Suite. Dropped ECM Suite. Acquired Hacking Suite. Map ----- +----------------------------------------------------+ | ?????????????????????????????????????????? | | ?????????????????????????????????????????? | | ?????????????????????????????????????????? | | ?????????????????????????????????????????? | | ?????????????????????????????????????????? | | ????????????????? ??????????????????????? | | ????????????????? ?????????????????###### | | ????????????????? ?????????????????# | | ????????????????# ?????????????????# | | ????????????????# #????????????????# | | ????????????????# #????????????????# | | ????????????????# #??????????????#######+ | | ????????????????# #??????????????#]] | | ????????????????# #??????????????#]] | | ????????????????# ###########????#]] | | ????????????????# # #????#]] " | | ?????????>??????# # #????#!! " | | ????????????????# # #????#!! " | | ????????????????# # #????##### | | ????????????##### + ########## | | ???????????## # # + % | | ???????????# # ############# | | ????????????# # #???????????? | | ????????????? =!###########???????????? | | ?????????????## [ ###???????????????????? | | ??????????????# @ #???????????????????? | | ??????????????#! !! #???????????????????? | | ??????????????#!!!! !#???????????????????? | | ??????????????########???????????????????? | | ?????????????????????????????????????????? | | ?????????????????????????????????????????? | | | | | | | | | | | | | | | | | | | | | | | | | | | | | | | | | | | | | | | +----------------------------------------------------+ Best States ------------- Heat Dissipation 42 Energy Generation 14 Energy Capacity 265 Matter Stores 300 Matter Capacity 300 Sight Range 16 Robot Scan Range 14 Terrain Scan Density 10 Armor Coverage 150 Evasion (%) 55 Recoil Reduction 2 Item Schematics ----------------- None Robot Schematics ------------------ None Fabricated ------------ Nothing Alien Tech Used ----------------- None Achievements -------------- Hey, That's Mine! Power Corrupts Challenges ------------ None Game ------ Seed CoreConstructDatajack Manual? 0 Play Time 00:36:25 Cumulative 9.9 hours Start 2024.04.06 @ 15:14:30 End 2024.04.06 @ 16:01:32 Sessions 1 Manual Loads 0 Difficulty Rogue Special Mode None Game No. 19 Rogue 19 Adventurer 0 Explorer 0 Win Type - Total 0 Types 0/0/0/0/0/0/0/0/0 Lore% 4 Gallery% 12 Achievement% 13 Wizard Run 0 Options --------- Layout 1 ASCII 1 Keyboard 0 Movement Vi Keybinds 0 Fullscreen 1 Font 16/SmallcapsGlow Map View 50x35 Zoom Use 0% Tactical HUD 0 Map Filters NONE Filters NONE Steam SD RUN: c30b9dbe-2aaf-40ac-885a-61259d4af59f